fUST/lending_fUST_20250720
["ID","MTS","AMOUNT","RATE_DAILY","PERIOD"]
[373350643,1752961846874,-460.0,0.00019093,2]
[373350644,1752961846884,-460.0,0.00019093,2]
[373350645,1752961846894,-460.0,0.00019093,2]
[373350646,1752961846903,-460.0,0.00019093,2]
[373350647,1752961846913,-460.0,0.00019093,2]
[373350648,1752961846923,-460.0,0.00019093,2]
[373350649,1752961846932,-460.0,0.00019093,2]
[373350650,1752961846942,-460.0,0.00019093,2]
[373350651,1752961846952,-563.24004569,0.00019093,2]
[373350652,1752961846961,-571.29,0.00019093,2]
[373350653,1752961846971,-512.3,0.00019093,2]
[373350654,1752961846981,-460.0,0.00019093,2]
[373350655,1752961846990,-460.0,0.00019093,2]
[373350656,1752961847000,-460.0,0.00019093,2]
[373350657,1752961847010,-460.0,0.00019093,2]
[373350658,1752961847020,-1418.71,0.00019093,2]
[373350659,1752961847030,-460.0,0.00019093,2]
[373350660,1752961847039,-460.0,0.00019093,2]
[373350661,1752961847049,-460.0,0.00019093,2]
[373350662,1752961847059,-460.0,0.00019093,2]
[373350663,1752961847070,-460.0,0.00019093,2]
[373350664,1752961847079,-460.0,0.00019093,2]
[373350665,1752961847090,-460.0,0.00019093,2]
[373350666,1752961847100,-460.0,0.00019093,2]
[373350667,1752961847110,-460.0,0.00019093,2]
[373350668,1752961847119,-460.0,0.00019093,2]
[373350669,1752961847130,-460.0,0.00019093,2]
[373350670,1752961847140,-460.0,0.00019093,2]
[373350671,1752961847150,-460.0,0.00019094,2]
[373350672,1752961847159,-460.0,0.00019094,2]
[373350673,1752961847169,-460.0,0.00019094,2]
[373350674,1752961847179,-460.0,0.00019094,2]
[373350675,1752961847189,-500.0,0.00019094,2]
[373350676,1752961847198,-791.31,0.00019094,2]
[373350677,1752961847208,-460.0,0.00019094,2]
[373350678,1752961847219,-543.72,0.00019094,2]
[373350679,1752961847229,-1978.99,0.00019094,2]
[373350680,1752961847239,-460.0,0.00019095,2]
[373350681,1752961847249,-460.0,0.00019095,2]
[373350682,1752961847259,-502.67138086,0.00019095,2]
[373350683,1752961847269,-460.0,0.00019095,2]
[373350684,1752961847279,-460.0,0.00019095,2]
[373350685,1752961847289,-460.0,0.00019095,2]
[373350686,1752961847298,-528.11373848,0.00019095,2]
[373350687,1752961847308,-460.0,0.00019095,2]
[373350688,1752961847318,-460.0,0.00019095,2]
[373350689,1752961847328,-460.0,0.00019095,2]
[373350690,1752961847338,-460.0,0.00019095,2]
[373350691,1752961847347,-460.0,0.00019095,2]
[373350692,1752961847357,-153.57597038,0.00019095,2]
[373350693,1752961847368,-413.28915297,0.00019095,2]
[373350694,1752961847377,-476.16,0.00019095,2]
[373350695,1752961847387,-460.0,0.00019095,2]
[373350696,1752961847396,-460.0,0.00019095,2]
[373350697,1752961847406,-655.52,0.00019095,2]
[373350698,1752961847415,-482.82,0.00019095,2]
[373350699,1752961847427,-460.0,0.00019095,2]
[373350700,1752961847438,-975.33,0.00019095,2]
[373350701,1752961847447,-460.0,0.00019095,2]
[373350702,1752961847457,-1037.05,0.00019095,2]
[373350703,1752961847470,-528.15372949,0.00019102,2]
[373350704,1752961847479,-835.12,0.00019139,2]
[373350705,1752961847490,-460.0,0.00019139,2]
[373350706,1752961847500,-460.0,0.00019139,2]
[373350707,1752961847518,-929.09,0.00019139,2]
[373350708,1752961847529,-780.24,0.00019139,2]
[373350709,1752961847539,-460.0,0.00019139,2]
[373350710,1752961847549,-835.12,0.0001914,2]
[373350711,1752961847559,-835.12,0.0001914,2]
[373350712,1752961847569,-835.12,0.0001914,2]
[373350713,1752961847579,-835.12,0.0001914,2]
[373350714,1752961847590,-835.12,0.0001914,2]
[373350715,1752961847600,-835.33,0.0001914,2]
[373350716,1752961847609,-500.0,0.0001914,2]
[373350717,1752961847619,-151.0,0.00019141,2]
[373350718,1752961847628,-151.0,0.00019141,2]
[373350719,1752961847637,-151.0,0.00019141,2]
[373350720,1752961847647,-554.03,0.00019141,2]
[373350721,1752961847656,-460.0,0.00019141,2]
[373350722,1752961847666,-460.84,0.00019141,2]
[373350723,1752961847676,-460.0,0.00019141,2]
[373350724,1752961847686,-500.0,0.00019141,2]
[373350725,1752961847696,-666.0,0.00019178,2]
[373350726,1752961847706,-459.976719,0.00019178,2]
[373350727,1752961847715,-1000.0,0.00019218,2]
[373350728,1752961847726,-999.50024988,0.00019269,2]
[373350729,1752961847736,-9513.16059442,0.00019279,2]
[373350730,1752961847749,-304.97620169,0.00019302,2]
[373350731,1752961847759,-151.0,0.00019329,2]
[373350732,1752961847768,-151.0,0.00019329,2]
[373350733,1752961847778,-151.0,0.00019329,2]
[373350734,1752961847788,-58192.92830392,0.00019329,2]
[373350735,1752961847800,-685.3,0.00019358,3]
[373350736,1752961847810,-342.66,0.00019358,3]
[373350737,1752961847820,-460.0,0.00019366,2]
[373350738,1752961847830,-736.79,0.00019366,2]
[373350739,1752961847840,-460.0,0.00019367,2]
[373350740,1752961847851,-383.48,0.00019367,2]
[373350741,1752961847861,-509.72,0.00019367,2]
[373350742,1752961847871,-460.0,0.00019367,2]
[373350743,1752961847881,-460.0,0.00019367,2]
[373350744,1752961847891,-460.0,0.00019367,2]
[373350745,1752961847901,-460.0,0.00019367,2]
[373350746,1752961847911,-460.0,0.00019367,2]
[373350747,1752961847921,-460.0,0.00019367,2]
[373350748,1752961847930,-460.0,0.00019367,2]
[373350749,1752961847940,-460.0,0.00019367,2]
[373350750,1752961847950,-460.0,0.00019367,2]
[373350751,1752961847959,-555.37,0.00019367,2]
[373350752,1752961847970,-460.0,0.00019367,2]
[373350753,1752961847980,-460.0,0.00019367,2]
[373350754,1752961847990,-460.0,0.00019367,2]
[373350755,1752961848000,-1144.31,0.00019367,2]
[373350756,1752961848010,-460.0,0.00019367,2]
[373350757,1752961848167,-460.0,0.00019367,2]
[373350758,1752961848178,-460.0,0.00019367,2]
[373350759,1752961848188,-1792.78,0.00019367,2]
[373350760,1752961848198,-1310.48,0.00019367,2]
[373350761,1752961848208,-460.0,0.00019367,2]
[373350762,1752961848218,-460.0,0.00019367,2]
[373350763,1752961848228,-460.0,0.00019367,2]
[373350764,1752961848238,-460.0,0.00019367,2]
[373350765,1752961848248,-460.0,0.00019367,2]
[373350766,1752961848258,-460.0,0.00019367,2]
[373350767,1752961848267,-460.0,0.00019367,2]
[373350768,1752961848277,-571.29,0.00019367,2]
[373350769,1752961848286,-512.3,0.00019367,2]
[373350770,1752961848296,-460.0,0.00019367,2]
[373350771,1752961848306,-460.0,0.00019367,2]
[373350772,1752961848317,-460.0,0.00019367,2]
[373350773,1752961848326,-1418.71,0.00019367,2]
[373350774,1752961848337,-460.0,0.00019367,2]
[373350775,1752961848347,-460.0,0.00019367,2]
[373350776,1752961848357,-460.0,0.00019367,2]
[373350777,1752961848366,-460.0,0.00019367,2]
[373350778,1752961848376,-460.0,0.00019367,2]
[373350779,1752961848386,-460.0,0.00019367,2]
[373350780,1752961848396,-460.0,0.00019367,2]
[373350781,1752961848406,-460.0,0.00019367,2]
[373350782,1752961848416,-460.0,0.00019367,2]
[373350783,1752961848430,-460.0,0.00019367,2]
[373350784,1752961848441,-460.0,0.00019367,2]
[373350785,1752961848450,-460.0,0.00019367,2]
[373350786,1752961848460,-460.0,0.00019368,2]
[373350787,1752961848471,-460.0,0.00019368,2]
[373350788,1752961848480,-460.0,0.00019368,2]
[373350789,1752961848490,-460.0,0.00019368,2]
[373350790,1752961848501,-500.0,0.00019368,2]
[373350791,1752961848511,-791.31,0.00019368,2]
[373350792,1752961848521,-460.0,0.00019368,2]
[373350793,1752961848531,-543.72,0.00019368,2]
[373350794,1752961848541,-1978.99,0.00019368,2]
[373350795,1752961848550,-460.0,0.00019369,2]
[373350796,1752961848560,-460.0,0.00019369,2]
[373350797,1752961848570,-460.0,0.00019369,2]
[373350798,1752961848580,-460.0,0.00019369,2]
[373350799,1752961848590,-215.69,0.00019369,2]
[373350800,1752961848600,-460.0,0.00019369,2]
[373350801,1752961848610,-460.0,0.00019369,2]
[373350802,1752961848620,-460.0,0.00019369,2]
[373350803,1752961848630,-460.0,0.00019369,2]
[373350804,1752961848640,-460.0,0.00019369,2]
[373350805,1752961848650,-151.0,0.00019369,2]
[373350806,1752961848660,-476.16,0.00019369,2]
[373350807,1752961848669,-460.0,0.00019369,2]
[373350808,1752961848679,-151.0,0.00019369,2]
[373350809,1752961848689,-655.52,0.00019369,2]
[373350810,1752961848698,-151.0,0.00019369,2]
[373350811,1752961848708,-151.0,0.00019369,2]
[373350812,1752961848717,-460.0,0.00019369,2]
[373350813,1752961848727,-975.33,0.00019369,2]
[373350814,1752961848737,-532.66,0.00019369,2]
[373350815,1752961848748,-1037.05,0.00019369,2]
[373350816,1752961848758,-151.0,0.00019383,2]
[373350817,1752961848768,-151.0,0.00019383,2]
[373350818,1752961848778,-151.0,0.00019383,2]
[373350819,1752961848789,-151.0,0.00019383,2]
[373350820,1752961848799,-1000.0,0.00019391,2]
[373350821,1752961848810,-500.0,0.00019391,2]
[373350822,1752961848820,-500.0,0.00019391,2]
[373350823,1752961848830,-1000.0,0.00019391,2]
[373350824,1752961848840,-312.1932489,0.000194,2]
[373350825,1752961848850,-460.0,0.00019413,2]
[373350826,1752961848860,-929.09,0.00019413,2]
[373350827,1752961848870,-780.24,0.00019413,2]
[373350828,1752961848879,-460.0,0.00019413,2]
[373350829,1752961848889,-500.0,0.00019413,2]
[373350830,1752961848898,-460.0,0.00019415,2]
[373350831,1752961848908,-460.0,0.00019415,2]
[373350832,1752961848919,-151.0,0.00019416,2]
[373350833,1752961848928,-151.0,0.00019416,2]
[373350834,1752961848937,-655.4520006,0.00019421,2]
[373350835,1752961848947,-977.83428084,0.00019421,2]
[373350836,1752961848957,-160.0,0.00019467,2]
[373350837,1752961848967,-500.0,0.0001947,2]
[373350838,1752961848976,-151.0,0.0001949,2]
[373350839,1752961848986,-151.0,0.0001949,2]
[373350840,1752961848995,-1000.0,0.00019495,2]
[373350841,1752961849005,-153.0,0.000195,2]
[373350842,1752961849014,-153.0,0.000195,2]
[373350843,1752961849024,-9513.16059442,0.00019555,2]
[373350844,1752961849035,-500.0,0.00019623,2]
[373350845,1752961849045,-909.0,0.00019628,2]
[373350846,1752961849055,-736.79,0.0001964,2]
[373350847,1752961849065,-500.0,0.0001964,2]
[373350848,1752961849076,-500.0,0.0001964,2]
[373350849,1752961849086,-172.15020839,0.0001964,2]
[373350850,1752961849096,-509.72,0.00019641,2]
[373350851,1752961849106,-460.0,0.00019641,2]
[373350852,1752961849116,-460.0,0.00019641,2]
[373350853,1752961849126,-460.0,0.00019641,2]
[373350854,1752961849136,-460.0,0.00019641,2]
[373350855,1752961849146,-460.0,0.00019641,2]
[373350856,1752961849156,-460.0,0.00019641,2]
[373350857,1752961849167,-555.37,0.00019641,2]
[373350858,1752961849177,-460.0,0.00019641,2]
[373350859,1752961849187,-460.0,0.00019641,2]
[373350860,1752961849197,-460.0,0.00019641,2]
[373350861,1752961849209,-1144.31,0.00019641,2]
[373350862,1752961849219,-460.0,0.00019641,2]
[373350863,1752961849229,-460.0,0.00019641,2]
[373350864,1752961849238,-460.0,0.00019641,2]
[373350865,1752961849248,-1792.78,0.00019641,2]
[373350866,1752961849258,-1310.48,0.00019641,2]
[373350867,1752961849268,-460.0,0.00019641,2]
[373350868,1752961849277,-460.0,0.00019641,2]
[373350869,1752961849287,-294.82495466,0.00019641,2]
[373350870,1752961849297,-571.29,0.00019641,2]
[373350871,1752961849306,-512.3,0.00019641,2]
[373350872,1752961849316,-1418.71,0.00019641,2]
[373350873,1752961849325,-460.0,0.00019641,2]
[373350874,1752961849335,-460.0,0.00019641,2]
[373350875,1752961849348,-460.0,0.00019641,2]
[373350876,1752961849357,-460.0,0.00019641,2]
[373350877,1752961849367,-460.0,0.00019641,2]
[373350878,1752961849377,-401.71284279,0.00019641,2]
[373350879,1752961849387,-460.0,0.00019641,2]
[373350880,1752961849397,-460.0,0.00019641,2]
[373350881,1752961849408,-460.0,0.00019641,2]
[373350882,1752961849418,-460.0,0.00019641,2]
[373350883,1752961849433,-460.0,0.00019642,2]
[373350884,1752961849443,-460.0,0.00019642,2]
[373350885,1752961849453,-500.0,0.00019642,2]
[373350886,1752961849463,-791.31,0.00019642,2]
[373350887,1752961849473,-543.72,0.00019642,2]
[373350888,1752961849483,-1978.99,0.00019642,2]
[373350889,1752961849492,-460.0,0.00019643,2]
[373350890,1752961849503,-460.0,0.00019643,2]
[373350891,1752961849514,-460.0,0.00019643,2]
[373350892,1752961849523,-460.0,0.00019643,2]
[373350893,1752961849533,-460.0,0.00019643,2]
[373350894,1752961849543,-460.0,0.00019643,2]
[373350895,1752961849553,-460.0,0.00019643,2]
[373350896,1752961849563,-151.0,0.00019643,2]
[373350897,1752961849573,-476.16,0.00019643,2]
[373350898,1752961849583,-460.0,0.00019643,2]
[373350899,1752961849593,-202.464755,0.00019643,2]
[373350900,1752961849603,-202.464755,0.00019643,2]
[373350901,1752961849613,-655.52,0.00019643,2]
[373350902,1752961849623,-975.33,0.00019643,2]
[373350903,1752961849632,-1037.05,0.00019643,2]
[373350904,1752961849643,-460.0,0.00019687,2]
[373350905,1752961849652,-929.09,0.00019687,2]
[373350906,1752961849662,-780.24,0.00019687,2]
[373350907,1752961849671,-460.0,0.00019687,2]
[373350908,1752961849680,-544.02,0.00019688,2]
[373350909,1752961849690,-460.0,0.00019689,2]
[373350910,1752961849699,-460.0,0.00019689,2]
[373350911,1752961849708,-152.474155,0.00019753,2]
[373350912,1752961849719,-207.4,0.00019826,2]
[373350913,1752961849728,-151.0,0.00019826,2]
[373350914,1752961849738,-151.0,0.00019826,2]
[373350915,1752961849748,-151.0,0.00019826,2]
[373350916,1752961849757,-151.0,0.00019826,2]
[373350917,1752961849767,-151.0,0.00019826,2]
[373350918,1752961849776,-151.0,0.00019826,2]
[373350919,1752961849787,-151.0,0.00019826,2]
[373350920,1752961849797,-151.0,0.00019826,2]
[373350921,1752961849807,-151.0,0.00019826,2]
[373350922,1752961849818,-151.0,0.00019826,2]
[373350923,1752961849830,-151.0,0.00019826,2]
[373350924,1752961849840,-151.0,0.00019826,2]
[373350925,1752961849849,-151.0,0.00019826,2]
[373350926,1752961849859,-151.0,0.00019826,2]
[373350927,1752961849868,-151.0,0.00019826,2]
[373350928,1752961849878,-151.0,0.00019826,2]
[373350929,1752961849888,-151.0,0.00019826,2]
[373350930,1752961849897,-151.0,0.00019826,2]
[373350931,1752961849906,-151.0,0.00019826,2]
[373350932,1752961849916,-151.0,0.00019826,2]
[373350933,1752961849925,-12999.20350234,0.00019826,2]
[373350934,1752961849934,-160.0,0.0001983,2]
[373350935,1752961849944,-160.0,0.0001983,2]
[373350936,1752961849953,-160.0,0.0001983,2]
[373350937,1752961849963,-160.0,0.0001983,2]
[373350938,1752961849974,-12612.80205064,0.0001983,2]
[373350939,1752961849984,-230.94145789,0.0001983,2]
[373350940,1752961849994,-214.52603969,0.0001983,2]
[373350941,1752961850006,-160.0,0.0001983,2]
[373350942,1752961850016,-160.0,0.0001983,2]
[373350943,1752961850026,-525.83049785,0.0001983,2]
[373350944,1752961850037,-476.34170116,0.0001983,2]
[373350945,1752961850048,-160.0,0.0001983,2]
[373350946,1752961850059,-215.67360783,0.0001983,2]
[373350947,1752961850069,-839.454303,0.0001983,2]
[373350948,1752961850079,-160.0,0.0001983,2]
[373350949,1752961850089,-5356.94629615,0.00019831,2]
[373350950,1752961850203,-4156.21429827,0.00019831,2]
[373350951,1752961850214,-736.79,0.00019914,2]
[373350952,1752961850224,-509.72,0.00019915,2]
[373350953,1752961850234,-460.0,0.00019915,2]
[373350954,1752961850243,-460.0,0.00019915,2]
[373350955,1752961850254,-460.0,0.00019915,2]
[373350956,1752961850265,-460.0,0.00019915,2]
[373350957,1752961850276,-555.37,0.00019915,2]
[373350958,1752961850286,-460.0,0.00019915,2]
[373350959,1752961850296,-460.0,0.00019915,2]
[373350960,1752961850305,-460.0,0.00019915,2]
[373350961,1752961850317,-1144.31,0.00019915,2]
[373350962,1752961850327,-460.0,0.00019915,2]
[373350963,1752961850337,-460.0,0.00019915,2]
[373350964,1752961850347,-460.0,0.00019915,2]
[373350965,1752961850357,-1792.78,0.00019915,2]
[373350966,1752961850369,-1310.48,0.00019915,2]
[373350967,1752961850380,-195.18514173,0.00019915,2]
[373350968,1752961850394,-264.81485827,0.00019915,2]
[373350969,1752961850406,-460.0,0.00019915,2]
[373350970,1752961850416,-44.94023411,0.00019915,2]
[373350971,1752961850437,-526.34976589,0.00019915,2]
[373350972,1752961850448,-512.3,0.00019915,2]
[373350973,1752961850458,-1418.71,0.00019915,2]
[373350974,1752961850469,-573.84,0.00019915,2]
[373350975,1752961850479,-460.0,0.00019915,2]
[373350976,1752961850489,-526.17510606,0.00019915,2]
[373350977,1752961850498,-460.0,0.00019915,2]
[373350978,1752961850508,-460.0,0.00019915,2]
[373350979,1752961850518,-460.0,0.00019915,2]
[373350980,1752961850528,-460.0,0.00019915,2]
[373350981,1752961850538,-460.0,0.00019915,2]
[373350982,1752961850548,-460.0,0.00019916,2]
[373350983,1752961850557,-460.0,0.00019916,2]
[373350984,1752961850567,-791.31,0.00019916,2]
[373350985,1752961850675,-543.72,0.00019916,2]
[373350986,1752961850685,-1978.99,0.00019916,2]
[373350987,1752961850694,-151.0,0.00019917,2]
[373350988,1752961850704,-151.0,0.00019917,2]
[373350989,1752961850715,-460.0,0.00019917,2]
[373350990,1752961850724,-151.0,0.00019917,2]
[373350991,1752961850735,-151.0,0.00019917,2]
[373350992,1752961850746,-460.0,0.00019917,2]
[373350993,1752961850757,-476.16,0.00019917,2]
[373350994,1752961850767,-234.576232,0.00019917,2]
[373350995,1752961850778,-655.52,0.00019917,2]
[373350996,1752961850788,-151.0,0.00019917,2]
[373350997,1752961850799,-151.0,0.00019917,2]
[373350998,1752961850808,-975.33,0.00019917,2]
[373350999,1752961850819,-1037.05,0.00019917,2]
[373351000,1752961850830,-500.0,0.00019939,2]
[373351001,1752961850842,-952.85815076,0.00019939,2]
[373351002,1752961850852,-460.0,0.00019961,2]
[373351003,1752961850861,-929.09,0.00019961,2]
[373351004,1752961850871,-780.24,0.00019961,2]
[373351005,1752961850881,-460.0,0.00019961,2]
[373351006,1752961850890,-460.0,0.00019963,2]
[373351007,1752961850901,-418.61984751,0.00019963,2]
[373351008,1752961850910,-151.0,0.00019963,2]
[373351009,1752961850920,-151.0,0.00019963,2]
[373351010,1752961850930,-151.0,0.00019963,2]
[373351011,1752961850939,-151.0,0.00019963,2]
[373351012,1752961850949,-177.672,0.00019964,2]
[373351013,1752961850959,-151.0,0.00019964,2]
[373351014,1752961850969,-800.0,0.00019968,2]
[373351015,1752961850979,-2902.79461444,0.00019975,2]
[373351016,1752961850988,-232.79235763,0.00019998,2]
[373351017,1752961850999,-151.0,0.0002,2]
[373351018,1752961851009,-14300.23978458,0.0002,2]
[373351019,1752961851018,-260.0,0.00020015,2]
[373351020,1752961851028,-9513.16059442,0.00020107,2]
[373351021,1752961851038,-151.0,0.00020107,2]
[373351022,1752961851047,-151.0,0.00020107,2]
[373351023,1752961851057,-994.666267,0.00020107,2]
[373351024,1752961851067,-994.666267,0.00020107,2]
[373351025,1752961851077,-151.0,0.0002011,2]
[373351026,1752961851086,-151.0,0.0002011,2]
[373351027,1752961851096,-208.909663,0.00020187,2]
[373351028,1752961851105,-736.79,0.00020188,2]
[373351029,1752961851115,-509.72,0.00020189,2]
[373351030,1752961851125,-460.0,0.00020189,2]
[373351031,1752961851134,-460.0,0.00020189,2]
[373351032,1752961851143,-555.37,0.00020189,2]
[373351033,1752961851153,-460.0,0.00020189,2]
[373351034,1752961851162,-460.0,0.00020189,2]
[373351035,1752961851172,-1144.31,0.00020189,2]
[373351036,1752961851182,-460.0,0.00020189,2]
[373351037,1752961851191,-460.0,0.00020189,2]
[373351038,1752961851202,-250.38,0.00020189,2]
[373351039,1752961851212,-1792.78,0.00020189,2]
[373351040,1752961851222,-1310.48,0.00020189,2]
[373351041,1752961851232,-460.0,0.00020189,2]
[373351042,1752961851241,-460.0,0.00020189,2]
[373351043,1752961851251,-571.29,0.00020189,2]
[373351044,1752961851260,-512.3,0.00020189,2]
[373351045,1752961851270,-1418.71,0.00020189,2]
[373351046,1752961851279,-392.51,0.00020189,2]
[373351047,1752961851289,-460.0,0.00020189,2]
[373351048,1752961851298,-460.0,0.00020189,2]
[373351049,1752961851307,-460.0,0.00020189,2]
[373351050,1752961851317,-460.0,0.00020189,2]
[373351051,1752961851327,-285.20121522,0.0002019,2]
[373351052,1752961851336,-314.24,0.0002019,2]
[373351053,1752961851345,-791.31,0.0002019,2]
[373351054,1752961851355,-543.72,0.0002019,2]
[373351055,1752961851365,-1978.99,0.0002019,2]
[373351056,1752961851375,-172.24,0.00020191,2]
[373351057,1752961851384,-232.49169801,0.00020191,2]
[373351058,1752961851393,-476.16,0.00020191,2]
[373351059,1752961851403,-975.33,0.00020191,2]
[373351060,1752961851412,-1037.05,0.00020191,2]
[373351061,1752961851424,-356.2230728,0.00020219,2]
[373351062,1752961851434,-460.0,0.00020235,2]
[373351063,1752961851443,-929.09,0.00020235,2]
[373351064,1752961851453,-780.24,0.00020235,2]
[373351065,1752961851463,-460.0,0.00020235,2]
[373351066,1752961851473,-151.0,0.00020236,2]
[373351067,1752961851482,-151.0,0.00020236,2]
[373351068,1752961851491,-151.0,0.00020236,2]
[373351069,1752961851502,-460.0,0.00020237,2]
[373351070,1752961851511,-151.0,0.00020348,2]
[373351071,1752961851521,-202.464755,0.00020348,2]
[373351072,1752961851530,-202.464755,0.00020348,2]
[373351073,1752961851539,-160.0,0.0002035,3]
[373351074,1752961851549,-476.34170116,0.0002035,3]
[373351075,1752961851559,-12612.80205064,0.0002035,3]
[373351076,1752961851568,-214.52603969,0.0002035,3]
[373351077,1752961851578,-387.83084799,0.00020352,2]
[373351078,1752961851588,-9513.16059442,0.00020383,3]
[373351079,1752961851598,-151.0,0.000204,3]
[373351080,1752961851607,-736.79,0.00020462,2]
[373351081,1752961851616,-509.72,0.00020463,2]
[373351082,1752961851626,-289.62840671,0.00020463,2]
[373351083,1752961851639,-170.37159329,0.00020463,2]
[373351084,1752961851649,-460.0,0.00020463,2]
[373351085,1752961851658,-555.37,0.00020463,2]
[373351086,1752961851667,-460.0,0.00020463,2]
[373351087,1752961851677,-382.33143859,0.00020463,2]
[373351088,1752961851687,-1144.31,0.00020463,2]
[373351089,1752961851696,-460.0,0.00020463,2]
[373351090,1752961851705,-460.0,0.00020463,2]
[373351091,1752961851715,-1792.78,0.00020463,2]
[373351092,1752961851725,-1310.48,0.00020463,2]
[373351093,1752961851734,-460.0,0.00020463,2]
[373351094,1752961851743,-460.0,0.00020463,2]
[373351095,1752961851753,-571.29,0.00020463,2]
[373351096,1752961851762,-512.3,0.00020463,2]
[373351097,1752961851772,-1418.71,0.00020463,2]
[373351098,1752961851781,-236.38,0.00020463,2]
[373351099,1752961851791,-460.0,0.00020463,2]
[373351100,1752961851801,-460.0,0.00020463,2]
[373351101,1752961851810,-460.0,0.00020463,2]
[373351102,1752961851819,-791.31,0.00020464,2]
[373351103,1752961851829,-543.72,0.00020464,2]
[373351104,1752961851838,-1978.99,0.00020464,2]
[373351105,1752961851848,-476.16,0.00020465,2]
[373351106,1752961851857,-975.33,0.00020465,2]
[373351107,1752961851867,-1037.05,0.00020465,2]
[373351108,1752961851876,-151.0,0.00020509,2]
[373351109,1752961851886,-460.0,0.00020509,2]
[373351110,1752961851895,-163.401399,0.00020509,2]
[373351111,1752961851906,-163.401399,0.00020509,2]
[373351112,1752961851916,-929.09,0.00020509,2]
[373351113,1752961851925,-780.24,0.00020509,2]
[373351114,1752961851934,-315.75636852,0.00020509,2]
[373351115,1752961851943,-447.991783,0.00020509,2]
[373351116,1752961851953,-447.991783,0.00020509,2]
[373351117,1752961851962,-460.0,0.00020511,2]
[373351118,1752961851973,-360.0,0.00020563,2]
[373351119,1752961851983,-154.60703084,0.00020647,2]
[373351120,1752961851992,-799.0,0.00020653,2]
[373351121,1752961852002,-2377.08520405,0.00020659,3]
[373351122,1752961852015,-7136.07539037,0.00020659,3]
[373351123,1752961852024,-151.0,0.00020685,2]
[373351124,1752961852034,-151.0,0.00020685,2]
[373351125,1752961852043,-151.0,0.00020685,2]
[373351126,1752961852053,-151.0,0.00020685,2]
[373351127,1752961852062,-151.0,0.000207,3]
[373351128,1752961852072,-152.474155,0.00020728,3]
[373351129,1752961852081,-736.79,0.00020736,2]
[373351130,1752961852091,-509.72,0.00020737,2]
[373351131,1752961852101,-314.63,0.00020737,2]
[373351132,1752961852110,-460.0,0.00020737,2]
[373351133,1752961852119,-555.37,0.00020737,2]
[373351134,1752961852130,-460.0,0.00020737,2]
[373351135,1752961852139,-1144.31,0.00020737,2]
[373351136,1752961852149,-211.51147321,0.00020737,2]
[373351137,1752961852158,-1792.78,0.00020737,2]
[373351138,1752961852168,-1310.48,0.00020737,2]
[373351139,1752961852177,-460.0,0.00020737,2]
[373351140,1752961852187,-460.0,0.00020737,2]
[373351141,1752961852197,-571.29,0.00020737,2]
[373351142,1752961852207,-512.3,0.00020737,2]